fUSD/lending_fUSD_20260324
["ID","MTS","AMOUNT","RATE_DAILY","PERIOD"]
[408844993,1774338781726,-2000.22,0.00043561,120]
[408844994,1774338781736,-1988.85,0.00043561,120]
[408844995,1774338781746,-500.0,0.00043561,120]
[408844996,1774338781756,-500.0,0.00043561,120]
[408844997,1774338781765,-627.92,0.00043561,120]
[408844998,1774338781775,-2821.24,0.00043561,120]
[408844999,1774338781785,-500.0,0.00043561,90]
[408845000,1774338781935,-819.97,0.00043561,120]
[408845001,1774338781944,-1024.12,0.00043561,120]
[408845002,1774338781954,-500.0,0.00043561,120]
[408845003,1774338781963,-500.0,0.00043561,120]
[408845004,1774338781973,-500.0,0.00043561,120]
[408845005,1774338781983,-320.21777389,0.00043561,120]
[408845006,1774338781993,-1947.88,0.00043561,120]
[408845007,1774338782002,-500.0,0.00043561,120]
[408845008,1774338782012,-659.88,0.00043561,120]
[408845009,1774338782022,-810.31,0.00043561,120]
[408845010,1774338782031,-500.0,0.00043561,120]
[408845011,1774338782040,-1590.35,0.00043561,120]
[408845012,1774338782050,-688.15,0.00043561,120]
[408845013,1774338782060,-500.0,0.00043561,120]
[408845014,1774338782069,-4167.56,0.00043561,14]
[408845015,1774338782078,-515.79,0.00043561,120]
[408845016,1774338782088,-787.69,0.00043561,120]
[408845017,1774338782098,-698.8,0.00043561,120]
[408845018,1774338782108,-653.93,0.00043561,120]
[408845019,1774338782117,-866.06,0.00043561,120]
[408845020,1774338782127,-2147.96,0.00043561,120]
[408845021,1774338782137,-936.69,0.00043561,120]
[408845022,1774338782147,-500.0,0.00043561,120]
[408845023,1774338782156,-898.82,0.00043561,120]
[408845024,1774338782165,-627.57,0.00043561,120]
[408845025,1774338782176,-1680.93,0.00043561,120]
[408845026,1774338782186,-500.0,0.00043561,120]
[408845027,1774338782195,-516.86,0.00043561,120]
[408845028,1774338782204,-1731.35,0.00043561,120]
[408845029,1774338782214,-570.78,0.00043561,120]
[408845030,1774338782224,-1894.96,0.00043561,120]
[408845031,1774338782234,-500.0,0.00043561,120]
[408845032,1774338782245,-833.21,0.00043561,120]
[408845033,1774338782265,-500.0,0.00043561,120]
[408845034,1774338782283,-500.0,0.00043561,120]
[408845035,1774338782303,-678.17,0.00043561,120]
[408845036,1774338782312,-500.0,0.00043561,120]
[408845037,1774338782322,-1154.53,0.00043561,120]
[408845038,1774338782331,-532.48,0.00043561,120]
[408845039,1774338782341,-1168.04,0.00043561,120]
[408845040,1774338782350,-500.0,0.00043561,120]
[408845041,1774338782360,-1084.15,0.00043561,120]
[408845042,1774338782370,-500.0,0.00043561,120]
[408845043,1774338782380,-1543.41,0.00043561,120]
[408845044,1774338782393,-524.04,0.00043561,120]
[408845045,1774338782403,-507.54,0.00043561,60]
[408845046,1774338782413,-1735.5,0.00043561,120]
[408845047,1774338782423,-528.45,0.00043561,120]
[408845048,1774338782434,-500.0,0.00043561,120]
[408845049,1774338782444,-500.0,0.00043561,120]
[408845050,1774338782454,-1522.45,0.00043561,120]
[408845051,1774338782465,-500.0,0.00043561,120]
[408845052,1774338782475,-1728.67,0.00043561,120]
[408845053,1774338782484,-1193.94,0.00043561,120]
[408845054,1774338782494,-2483.59,0.00043561,120]
[408845055,1774338782504,-1145.4,0.00043561,120]
[408845056,1774338782514,-500.0,0.00043561,120]
[408845057,1774338782523,-785.33,0.00043561,120]
[408845058,1774338782533,-500.0,0.00043561,120]
[408845059,1774338782543,-802.88,0.00043561,120]
[408845060,1774338782553,-773.31,0.00043561,120]
[408845061,1774338782563,-504.31,0.00043561,120]
[408845062,1774338782573,-1766.83,0.00043561,120]
[408845063,1774338782583,-766.14,0.00043561,120]
[408845064,1774338782594,-655.33,0.00043561,120]
[408845065,1774338782604,-500.0,0.00043561,120]
[408845066,1774338782614,-500.0,0.00043561,120]
[408845067,1774338782623,-8117.29,0.00043561,120]
[408845068,1774338782633,-1429.82,0.00043561,120]
[408845069,1774338782643,-500.0,0.00043561,120]
[408845070,1774338782653,-224.74997766,0.00043561,120]
[408845071,1774338782662,-500.0,0.00043561,120]
[408845072,1774338782671,-1503.53,0.00043561,120]
[408845073,1774338782680,-1630.29,0.00043561,120]
[408845074,1774338782690,-500.0,0.00043561,120]
[408845075,1774338782699,-841.35,0.00043561,120]
[408845076,1774338782708,-562.16512619,0.00043561,120]
[408845077,1774338782718,-1387.91,0.00043561,120]
[408845078,1774338782728,-673.28,0.00043561,120]
[408845079,1774338782739,-680.83,0.00043561,120]
[408845080,1774338782749,-500.0,0.00043561,7]
[408845081,1774338782759,-500.0,0.00043561,120]
[408845082,1774338782768,-604.72,0.00043561,120]
[408845083,1774338782777,-1280.15,0.00043561,120]
[408845084,1774338782786,-1687.32,0.00043561,120]
[408845085,1774338782795,-553.79,0.00043561,120]
[408845086,1774338782804,-500.0,0.00043561,120]
[408845087,1774338782813,-500.0,0.00043561,120]
[408845088,1774338782822,-500.0,0.00043561,120]
[408845089,1774338782831,-500.0,0.00043561,120]
[408845090,1774338782841,-583.19,0.00043561,120]
[408845091,1774338782850,-500.0,0.00043561,120]
[408845092,1774338782859,-500.0,0.00043561,120]
[408845093,1774338782868,-765.82,0.00043561,120]
[408845094,1774338782878,-500.0,0.00043561,120]
[408845095,1774338782887,-500.0,0.00043561,120]
[408845096,1774338782896,-2264.25,0.00043561,120]
[408845097,1774338782906,-500.0,0.00043561,120]
[408845098,1774338782914,-1037.3,0.00043561,30]
[408845099,1774338782924,-2339.0,0.00043561,120]
[408845100,1774338782934,-1021.05,0.00043561,120]
[408845101,1774338782943,-602.59,0.00043561,120]
[408845102,1774338782953,-1084.43,0.00043561,120]
[408845103,1774338782962,-500.0,0.00043561,120]
[408845104,1774338782971,-1040.73,0.00043561,120]
[408845105,1774338782980,-500.0,0.00043561,120]
[408845106,1774338782989,-851.46,0.00043561,120]
[408845107,1774338782999,-1082.75,0.00043561,120]
[408845108,1774338783008,-1633.66,0.00043561,120]
[408845109,1774338783017,-4460.36,0.00043561,120]
[408845110,1774338783026,-1090.06,0.00043561,120]
[408845111,1774338783036,-1298.83,0.00043561,120]
[408845112,1774338783045,-545.35,0.00043561,120]
[408845113,1774338783054,-1399.28,0.00043561,120]
[408845114,1774338783063,-911.41,0.00043561,120]
[408845115,1774338783072,-4326.06,0.00043561,120]
[408845116,1774338783081,-637.83,0.00043561,120]
[408845117,1774338783090,-863.52,0.00043561,60]
[408845118,1774338783099,-521.47,0.00043561,120]
[408845119,1774338783109,-500.0,0.00043561,120]
[408845120,1774338783118,-500.0,0.00043561,14]
[408845121,1774338783127,-1041.22,0.00043561,120]
[408845122,1774338783136,-500.0,0.00043561,120]
[408845123,1774338783145,-500.0,0.00043561,120]
[408845124,1774338783154,-711.52,0.00043561,120]
[408845125,1774338783163,-2031.81,0.00043561,120]
[408845126,1774338783173,-790.74,0.00043561,120]
[408845127,1774338783182,-1067.59,0.00043561,120]
[408845128,1774338783191,-500.0,0.00043561,120]
[408845129,1774338783201,-500.0,0.00043561,120]
[408845130,1774338783210,-1154.84,0.00043561,120]
[408845131,1774338783219,-500.0,0.00043561,120]
[408845132,1774338783229,-1104.3,0.00043561,120]
[408845133,1774338783238,-1560.13,0.00043561,120]
[408845134,1774338783248,-500.0,0.00043561,120]
[408845135,1774338783258,-2348.54,0.00043561,120]
[408845136,1774338783267,-541.43,0.00043561,120]
[408845137,1774338783276,-500.0,0.00043561,120]
[408845138,1774338783286,-159.09199857,0.00043561,120]
[408845139,1774338783295,-500.0,0.00043561,120]
[408845140,1774338783304,-535.0,0.00043561,120]
[408845141,1774338783314,-858.21,0.00043561,120]
[408845142,1774338783323,-500.0,0.00043561,120]
[408845143,1774338783332,-500.0,0.00043561,120]
[408845144,1774338783341,-1539.96,0.00043561,120]
[408845145,1774338783350,-1021.53,0.00043561,120]
[408845146,1774338783360,-592.83,0.00043561,120]
[408845147,1774338783369,-500.0,0.00043561,120]
[408845148,1774338783379,-519.74,0.00043561,120]
[408845149,1774338783390,-813.09,0.00043561,120]
[408845150,1774338783403,-2149.78,0.00043561,120]
[408845151,1774338783413,-1598.49,0.00043561,120]
[408845152,1774338783423,-513.33,0.00043561,120]
[408845153,1774338783432,-500.0,0.00043561,120]
[408845154,1774338783443,-833.01,0.00043561,120]
[408845155,1774338783452,-656.49,0.00043561,120]
[408845156,1774338783463,-576.47229938,0.00043561,120]
[408845157,1774338783472,-500.0,0.00043561,120]
[408845158,1774338783481,-700.59,0.00043561,120]
[408845159,1774338783491,-728.42,0.00043561,120]
[408845160,1774338783500,-500.0,0.00043561,120]
[408845161,1774338783510,-500.0,0.00043561,120]
[408845162,1774338783520,-500.0,0.00043561,120]
[408845163,1774338783530,-293.59623949,0.00043562,30]
[408845164,1774338783540,-151.0,0.000436,120]
[408845165,1774338783550,-1093.8,0.00043622,30]
[408845166,1774338783560,-14593.0,0.0004365,60]
[408845167,1774338783570,-169.01045725,0.000437,120]
[408845168,1774338783579,-2735.451747,0.00043834,60]
[408845169,1774338783589,-2735.45174699,0.00043834,60]
[408845170,1774338783600,-743.4779064,0.00043835,120]
[408845171,1774338783610,-590.67,0.00043835,120]
[408845172,1774338783621,-1000.0,0.00043835,120]
[408845173,1774338783630,-415.31989257,0.00043835,120]
[408845174,1774338783640,-208.38528187,0.00043835,120]
[408845175,1774338783650,-705.66,0.00043835,120]
[408845176,1774338783659,-943.74,0.00043835,120]
[408845177,1774338783668,-500.0,0.00043835,120]
[408845178,1774338783679,-500.0,0.00043835,120]
[408845179,1774338783688,-507.3,0.00043835,120]
[408845180,1774338783698,-568.39,0.00043835,120]
[408845181,1774338783707,-729.64,0.00043835,120]
[408845182,1774338783716,-639.9,0.00043835,120]
[408845183,1774338783726,-500.0,0.00043835,30]
[408845184,1774338783736,-500.0,0.00043835,14]
[408845185,1774338783745,-651.21,0.00043835,120]
[408845186,1774338783755,-500.0,0.00043835,120]
[408845187,1774338783764,-524.6,0.00043835,120]
[408845188,1774338783773,-978.66,0.00043835,120]
[408845189,1774338783783,-500.0,0.00043835,30]
[408845190,1774338783792,-1180.13,0.00043835,120]
[408845191,1774338783801,-500.0,0.00043835,120]
[408845192,1774338783810,-574.37,0.00043835,120]
[408845193,1774338783819,-500.0,0.00043835,120]
[408845194,1774338783829,-1281.45,0.00043835,120]
[408845195,1774338783838,-1329.75,0.00043835,120]
[408845196,1774338783847,-500.0,0.00043835,120]
[408845197,1774338783856,-500.0,0.00043835,90]
[408845198,1774338783865,-515.22132547,0.00043835,120]
[408845199,1774338783874,-880.66,0.00043835,5]
[408845200,1774338783883,-599.98,0.00043835,120]
[408845201,1774338783893,-651.22,0.00043835,120]
[408845202,1774338783903,-500.0,0.00043835,120]
[408845203,1774338783912,-539.9,0.00043835,120]
[408845204,1774338783923,-604.85,0.00043835,120]
[408845205,1774338783932,-1076.85,0.00043835,120]
[408845206,1774338783941,-766.13,0.00043835,120]
[408845207,1774338783950,-617.48,0.00043835,120]
[408845208,1774338783959,-500.0,0.00043835,120]
[408845209,1774338783968,-835.56,0.00043835,120]
[408845210,1774338783977,-792.41,0.00043835,120]
[408845211,1774338783986,-325.54289009,0.00043835,120]
[408845212,1774338783998,-554.71599945,0.00043835,120]
[408845213,1774338784007,-469.16615363,0.00043835,120]
[408845214,1774338784016,-500.0,0.00043835,120]
[408845215,1774338784025,-1234.56,0.00043835,120]
[408845216,1774338784034,-500.0,0.00043835,120]
[408845217,1774338784043,-890.18,0.00043835,120]
[408845218,1774338784053,-239.40825898,0.00043835,120]
[408845219,1774338784062,-500.9565902,0.00043835,120]
[408845220,1774338784071,-500.0,0.00043835,120]
[408845221,1774338784081,-1024.48,0.00043835,120]
[408845222,1774338784090,-195.21599463,0.00043835,120]
[408845223,1774338784099,-500.0,0.00043835,120]
[408845224,1774338784108,-766.51,0.00043835,120]
[408845225,1774338784117,-268.46543139,0.00043835,120]
[408845226,1774338784126,-677.14,0.00043835,120]
[408845227,1774338784135,-2135.18,0.00043835,120]
[408845228,1774338784145,-563.34,0.00043835,120]
[408845229,1774338784155,-1402.94,0.00043835,120]
[408845230,1774338784164,-761.77,0.00043835,120]
[408845231,1774338784174,-1465.28,0.00043835,120]
[408845232,1774338784183,-500.0,0.00043835,120]
[408845233,1774338784192,-500.0,0.00043835,120]
[408845234,1774338784201,-500.0,0.00043835,120]
[408845235,1774338784211,-598.21,0.00043835,120]
[408845236,1774338784220,-500.0,0.00043835,120]
[408845237,1774338784229,-1412.93,0.00043835,120]
[408845238,1774338784238,-500.0,0.00043835,120]
[408845239,1774338784247,-229.24303685,0.00043835,120]
[408845240,1774338784257,-500.0,0.00043835,120]
[408845241,1774338784266,-846.4,0.00043835,120]
[408845242,1774338784275,-500.0,0.00043835,120]
[408845243,1774338784285,-212.54051712,0.00043835,120]
[408845244,1774338784294,-804.53,0.00043835,120]
[408845245,1774338784303,-862.09,0.00043835,120]
[408845246,1774338784312,-967.16,0.00043835,120]
[408845247,1774338784321,-649.68,0.00043835,120]
[408845248,1774338784331,-897.41,0.00043835,120]
[408845249,1774338784340,-500.0,0.00043835,120]
[408845250,1774338784350,-500.0,0.00043835,120]
[408845251,1774338784359,-1647.3,0.00043835,120]
[408845252,1774338784368,-500.0,0.00043835,120]
[408845253,1774338784377,-500.0,0.00043835,120]
[408845254,1774338784387,-500.0,0.00043835,120]
[408845255,1774338784399,-220.43012377,0.00043835,120]
[408845256,1774338784408,-932.54,0.00043835,120]
[408845257,1774338784418,-1817.92,0.00043835,120]
[408845258,1774338784428,-441.11677265,0.00043835,120]
[408845259,1774338784438,-500.0,0.00043835,120]
[408845260,1774338784447,-320.69567151,0.00043835,120]
[408845261,1774338784456,-500.0,0.00043835,120]
[408845262,1774338784466,-1328.91,0.00043835,120]
[408845263,1774338784475,-500.0,0.00043835,120]
[408845264,1774338784484,-500.0,0.00043835,120]
[408845265,1774338784494,-1294.19,0.00043835,120]
[408845266,1774338784504,-500.0,0.00043835,120]
[408845267,1774338784514,-3681.23,0.00043835,120]
[408845268,1774338784523,-500.0,0.00043835,120]
[408845269,1774338784532,-500.0,0.00043835,120]
[408845270,1774338784541,-644.74,0.00043835,120]
[408845271,1774338784551,-500.0,0.00043835,120]
[408845272,1774338784560,-688.63,0.00043835,120]
[408845273,1774338784569,-572.14,0.00043835,120]
[408845274,1774338784579,-500.0,0.00043835,120]
[408845275,1774338784588,-500.0,0.00043835,120]
[408845276,1774338784597,-500.0,0.00043835,120]
[408845277,1774338784607,-1109.47,0.00043835,120]
[408845278,1774338784616,-500.0,0.00043835,120]
[408845279,1774338784626,-500.0,0.00043835,120]
[408845280,1774338784635,-1361.64,0.00043835,120]
[408845281,1774338784644,-500.0,0.00043835,120]
[408845282,1774338784654,-1113.98,0.00043835,120]
[408845283,1774338784663,-500.0,0.00043835,120]
[408845284,1774338784672,-500.0,0.00043835,120]
[408845285,1774338784682,-500.0,0.00043835,120]
[408845286,1774338784691,-500.0,0.00043835,120]
[408845287,1774338784700,-804.84,0.00043835,120]
[408845288,1774338784710,-587.8,0.00043835,120]
[408845289,1774338784719,-895.35,0.00043835,120]
[408845290,1774338784728,-601.30146437,0.00043835,120]
[408845291,1774338784737,-500.0,0.00043835,120]
[408845292,1774338784747,-640.6,0.00043835,120]
[408845293,1774338784756,-500.0,0.00043835,120]
[408845294,1774338784765,-500.0,0.00043835,120]
[408845295,1774338784774,-500.0,0.00043835,2]
[408845296,1774338784783,-1353.62,0.00043835,120]
[408845297,1774338784792,-500.0,0.00043835,120]
[408845298,1774338784801,-663.05,0.00043835,120]
[408845299,1774338784811,-500.0,0.00043835,120]
[408845300,1774338784820,-500.0,0.00043835,120]
[408845301,1774338784829,-2022.99,0.00043835,120]
[408845302,1774338784838,-500.0,0.00043835,120]
[408845303,1774338784847,-993.61,0.00043835,120]
[408845304,1774338784857,-500.0,0.00043835,120]
[408845305,1774338784866,-526.3,0.00043835,120]
[408845306,1774338784875,-803.74,0.00043835,120]
[408845307,1774338784885,-500.0,0.00043835,120]
[408845308,1774338784894,-415.74674797,0.00043835,120]
[408845309,1774338784903,-500.0,0.00043835,120]
[408845310,1774338784912,-500.0,0.00043835,120]
[408845311,1774338784922,-593.39,0.00043835,120]
[408845312,1774338784932,-773.48,0.00043835,120]
[408845313,1774338784941,-500.0,0.00043835,120]
[408845314,1774338784950,-500.0,0.00043835,120]
[408845315,1774338784959,-500.0,0.00043835,120]
[408845316,1774338784968,-500.0,0.00043835,120]
[408845317,1774338784977,-500.0,0.00043835,120]
[408845318,1774338784987,-1169.17,0.00043835,120]
[408845319,1774338784996,-500.0,0.00043835,120]
[408845320,1774338785005,-500.0,0.00043835,120]
[408845321,1774338785015,-370.71415555,0.00043835,120]
[408845322,1774338785024,-500.0,0.00043835,120]
[408845323,1774338785033,-500.0,0.00043835,120]
[408845324,1774338785042,-1339.98,0.00043835,120]
[408845325,1774338785052,-431.44135619,0.00043835,120]
[408845326,1774338785060,-500.0,0.00043835,120]
[408845327,1774338785070,-599.34,0.00043835,120]
[408845328,1774338785079,-500.0,0.00043835,120]
[408845329,1774338785088,-1698.32,0.00043835,120]
[408845330,1774338785096,-551.15,0.00043835,120]
[408845331,1774338785105,-1450.66,0.00043835,120]
[408845332,1774338785115,-486.12393657,0.00043835,120]
[408845333,1774338785124,-500.0,0.00043835,120]
[408845334,1774338785133,-818.03,0.00043835,120]
[408845335,1774338785142,-157.645705,0.00043835,120]
[408845336,1774338785152,-620.94,0.00043835,2]
[408845337,1774338785161,-500.0,0.00043835,120]
[408845338,1774338785170,-500.0,0.00043835,120]
[408845339,1774338785180,-500.0,0.00043835,120]
[408845340,1774338785189,-500.0,0.00043835,120]
[408845341,1774338785198,-500.0,0.00043835,120]
[408845342,1774338785207,-1515.34,0.00043835,120]
[408845343,1774338785217,-500.0,0.00043835,120]
[408845344,1774338785227,-4192.59,0.00043835,120]
[408845345,1774338785235,-500.0,0.00043835,120]
[408845346,1774338785244,-322.40131066,0.00043835,120]
[408845347,1774338785254,-500.0,0.00043835,120]
[408845348,1774338785263,-2475.9,0.00043835,120]
[408845349,1774338785272,-500.0,0.00043835,120]
[408845350,1774338785282,-500.0,0.00043835,120]
[408845351,1774338785291,-2035.37,0.00043835,120]
[408845352,1774338785300,-208.31928895,0.00043835,120]
[408845353,1774338785309,-500.0,0.00043835,120]
[408845354,1774338785319,-1009.33,0.00043835,120]
[408845355,1774338785328,-857.75,0.00043835,120]
[408845356,1774338785337,-944.17,0.00043835,120]
[408845357,1774338785347,-500.0,0.00043835,120]
[408845358,1774338785356,-500.0,0.00043835,120]
[408845359,1774338785365,-1317.86,0.00043835,30]
[408845360,1774338785375,-164.26125271,0.00043835,120]
[408845361,1774338785384,-826.35,0.00043835,120]
[408845362,1774338785396,-500.0,0.00043835,120]
[408845363,1774338785406,-1144.87,0.00043835,120]
[408845364,1774338785415,-588.23,0.00043835,120]
[408845365,1774338785425,-500.0,0.00043835,120]
[408845366,1774338785435,-500.0,0.00043835,120]
[408845367,1774338785444,-895.15,0.00043835,120]
[408845368,1774338785454,-800.0,0.00043835,120]
[408845369,1774338785463,-500.0,0.00043835,120]
[408845370,1774338785473,-1197.62,0.00043835,120]
[408845371,1774338785482,-500.0,0.00043835,120]
[408845372,1774338785491,-1494.6,0.00043835,120]
[408845373,1774338785500,-500.0,0.00043835,120]
[408845374,1774338785510,-1086.62,0.00043835,120]
[408845375,1774338785521,-500.0,0.00043835,120]
[408845376,1774338785529,-500.0,0.00043835,120]
[408845377,1774338785539,-500.0,0.00043835,120]
[408845378,1774338785548,-946.8,0.00043835,120]
[408845379,1774338785558,-500.0,0.00043835,120]
[408845380,1774338785567,-713.74,0.00043835,120]
[408845381,1774338785576,-6072.1,0.00043835,120]
[408845382,1774338785585,-826.7,0.00043835,120]
[408845383,1774338785594,-1989.66,0.00043835,30]
[408845384,1774338785604,-552.86,0.00043835,120]
[408845385,1774338785614,-926.79,0.00043835,120]
[408845386,1774338785623,-500.0,0.00043835,120]
[408845387,1774338785635,-2329.55,0.00043835,120]
[408845388,1774338785644,-500.0,0.00043835,120]
[408845389,1774338785655,-847.68,0.00043835,120]
[408845390,1774338785664,-1646.81,0.00043835,120]
[408845391,1774338785673,-1090.68,0.00043835,120]
[408845392,1774338785683,-500.0,0.00043835,120]
[408845393,1774338785692,-1885.93,0.00043835,120]
[408845394,1774338785702,-741.6,0.00043835,120]
[408845395,1774338785711,-500.0,0.00043835,120]
[408845396,1774338785720,-727.16,0.00043835,120]
[408845397,1774338785731,-712.06,0.00043835,120]
[408845398,1774338785740,-2107.35,0.00043835,120]
[408845399,1774338785749,-500.0,0.00043835,120]
[408845400,1774338785759,-500.0,0.00043835,120]
[408845401,1774338785768,-1000.0,0.00043835,120]
[408845402,1774338785778,-1000.0,0.00043835,120]
[408845403,1774338785787,-500.0,0.00043835,120]
[408845404,1774338785796,-1000.0,0.00043835,120]
[408845405,1774338785806,-1000.0,0.00043835,120]
[408845406,1774338785815,-1000.0,0.00043835,120]
[408845407,1774338785825,-1000.0,0.00043835,120]
[408845408,1774338785834,-1000.0,0.00043835,120]
[408845409,1774338785843,-617.58,0.00043835,120]
[408845410,1774338785851,-403.02672613,0.00043835,120]
[408845411,1774338785860,-1000.0,0.00043835,120]
[408845412,1774338785870,-1000.0,0.00043835,120]
[408845413,1774338785879,-1000.0,0.00043835,120]
[408845414,1774338785889,-1000.0,0.00043835,120]
[408845415,1774338785898,-1000.0,0.00043835,120]
[408845416,1774338785907,-1000.0,0.00043835,120]
[408845417,1774338785916,-1000.0,0.00043835,120]
[408845418,1774338785926,-2133.23,0.00043835,120]
[408845419,1774338785936,-1000.0,0.00043835,120]
[408845420,1774338785946,-500.0,0.00043835,120]
[408845421,1774338785956,-1000.0,0.00043835,120]
[408845422,1774338785965,-5833.33,0.00043835,120]
[408845423,1774338785975,-1000.0,0.00043835,120]
[408845424,1774338785983,-1000.0,0.00043835,120]
[408845425,1774338785992,-1000.0,0.00043835,120]
[408845426,1774338786135,-1000.0,0.00043835,120]
[408845427,1774338786144,-1000.0,0.00043835,120]
[408845428,1774338786154,-1000.0,0.00043835,120]
[408845429,1774338786164,-1000.0,0.00043835,120]
[408845430,1774338786173,-1000.0,0.00043835,120]
[408845431,1774338786183,-1039.39,0.00043835,120]
[408845432,1774338786193,-1000.0,0.00043835,120]
[408845433,1774338786202,-1000.0,0.00043835,120]
[408845434,1774338786212,-1000.0,0.00043835,120]
[408845435,1774338786221,-2468.56,0.00043835,120]
[408845436,1774338786230,-548.62616502,0.00043835,120]
[408845437,1774338786239,-1366.12,0.00043835,120]
[408845438,1774338786249,-500.0,0.00043835,120]
[408845439,1774338786258,-1016.32,0.00043835,120]
[408845440,1774338786268,-784.59,0.00043835,120]
[408845441,1774338786277,-1478.69,0.00043835,120]
[408845442,1774338786286,-1259.9,0.00043835,120]
[408845443,1774338786295,-1107.99,0.00043835,120]
[408845444,1774338786304,-1114.05,0.00043835,120]
[408845445,1774338786314,-1519.93,0.00043835,120]
[408845446,1774338786323,-646.06,0.00043835,120]
[408845447,1774338786333,-500.0,0.00043835,120]
[408845448,1774338786342,-1266.58,0.00043835,120]
[408845449,1774338786351,-617.60526606,0.00043835,120]
[408845450,1774338786360,-500.0,0.00043835,120]
[408845451,1774338786370,-342.76681744,0.00043835,120]
[408845452,1774338786380,-1009.25,0.00043835,120]
[408845453,1774338786390,-707.37,0.00043835,120]
[408845454,1774338786403,-1156.03,0.00043835,14]
[408845455,1774338786413,-999.55,0.00043835,120]
[408845456,1774338786422,-500.0,0.00043835,120]
[408845457,1774338786433,-970.63,0.00043835,120]
[408845458,1774338786444,-650.62,0.00043835,30]
[408845459,1774338786453,-725.53,0.00043835,120]
[408845460,1774338786463,-500.0,0.00043835,120]
[408845461,1774338786475,-1014.92,0.00043835,120]
[408845462,1774338786486,-2689.33,0.00043835,120]
[408845463,1774338786495,-500.0,0.00043835,120]
[408845464,1774338786504,-500.0,0.00043835,120]
[408845465,1774338786513,-500.0,0.00043835,120]
[408845466,1774338786523,-1544.85,0.00043835,120]
[408845467,1774338786533,-500.0,0.00043835,120]
[408845468,1774338786543,-500.0,0.00043835,120]
[408845469,1774338786553,-500.0,0.00043835,120]
[408845470,1774338786563,-1269.14,0.00043835,120]
[408845471,1774338786572,-500.0,0.00043835,120]
[408845472,1774338786582,-500.0,0.00043835,120]
[408845473,1774338786592,-665.15,0.00043835,120]
[408845474,1774338786602,-259.43948932,0.00043835,120]
[408845475,1774338786612,-680.42,0.00043835,120]
[408845476,1774338786622,-500.0,0.00043835,120]
[408845477,1774338786632,-500.0,0.00043835,120]
[408845478,1774338786642,-500.0,0.00043835,120]
[408845479,1774338786652,-500.0,0.00043835,120]
[408845480,1774338786662,-500.0,0.00043835,120]
[408845481,1774338786671,-1769.26,0.00043835,120]
[408845482,1774338786682,-512.42,0.00043835,120]
[408845483,1774338786692,-500.0,0.00043835,120]
[408845484,1774338786701,-500.0,0.00043835,120]
[408845485,1774338786711,-500.0,0.00043835,120]
[408845486,1774338786722,-500.0,0.00043835,120]
[408845487,1774338786731,-500.0,0.00043835,120]
[408845488,1774338786741,-500.0,0.00043835,120]
[408845489,1774338786751,-1705.77,0.00043835,120]
[408845490,1774338786761,-500.0,0.00043835,120]
[408845491,1774338786771,-978.43,0.00043835,120]
[408845492,1774338786781,-500.0,0.00043835,120]